fUSD/lending_fUSD_20241119
["ID","MTS","AMOUNT","RATE_DAILY","PERIOD"]
[342671874,1732035043636,-1070.64238535,0.00059893,120]
[342671875,1732035043645,-5000.0,0.000599,120]
[342671876,1732035043655,-1407.07018853,0.000599,120]
[342671877,1732035043664,-3443.9211,0.000599,10]
[342671878,1732035043673,-87310.95051371,0.000599,120]
[342671883,1732035046108,-0.4097,0.000599,120]
[342671884,1732035046220,-150.0,0.00048361,117]
[342671885,1732035046230,-175.79035766,0.0005782,2]
[342671886,1732035046241,-2773.32389514,0.0005782,2]
[342671887,1732035046251,-570.0,0.00058999,25]
[342671888,1732035046260,-1576.63978629,0.000599,120]
[342671889,1732035046270,-1012.24173126,0.000599,12]
[342671890,1732035046279,-4907.57443242,0.00059927,30]
[342671891,1732035046289,-1500.0,0.00059929,30]
[342671892,1732035046298,-1500.0,0.00059977,30]
[342671893,1732035046307,-836.19428691,0.00059985,120]
[342671894,1732035046318,-10000.0,0.00059998,120]
[342671895,1732035046327,-1000.0,0.00059999,120]
[342671896,1732035046336,-500.0,0.00059999,120]
[342671897,1732035046346,-1199.59,0.00059999,120]
[342671898,1732035046356,-3094.4,0.00059999,120]
[342671899,1732035046366,-7088.49973983,0.0006,60]
[342671900,1732035046381,-500.0,0.00052999,120]
[342671901,1732035046391,-4333.89999999,0.0006,60]
[342671902,1732035046413,-5371.42190246,0.0006,60]
[342671903,1732035046428,-562.37553563,0.0006,60]
[342671904,1732035046439,-3345.8267,0.0006,60]
[342671905,1732035046452,-3520.70047463,0.0006,60]
[342671906,1732035046743,-25777.27564746,0.0006,60]
[342671907,1732035046752,-20000.0,0.0006,2]
[342671908,1732035046763,-10564.68834439,0.0006,120]
[342671909,1732035046772,-25000.0,0.0006,30]
[342671910,1732035046783,-14004.43842253,0.0006,120]
[342671911,1732035046797,-666.82279571,0.0006,120]
[342671912,1732035046808,-662.84629577,0.0006,120]
[342671913,1732035046820,-739.16,0.0006,120]
[342671914,1732035187289,-150.0,0.00033942,2]
[342671915,1732035192200,-800.0,0.00038356,7]
[342671916,1732035192226,-800.0,0.00038356,7]
[342671917,1732035192253,-800.0,0.00038356,7]
[342671918,1732035192278,-800.0,0.00038356,7]
[342671919,1732035192303,-800.0,0.00038356,7]
[342671920,1732035196903,-800.0,0.00045,120]
[342671921,1732035197157,150.0,0.00045,120]
[342671922,1732035201700,800.0,0.00045,120]
[342671923,1732035206672,-1500.0,0.000458,2]
[342671924,1732035206704,-300.0,0.00047833,2]
[342671925,1732035206733,-150.0,0.00047833,2]
[342671926,1732035206760,-1500.0,0.000485,2]
[342671927,1732035206787,-223.67,0.000488,30]
[342671928,1732035206815,-800.0,0.00049315,17]
[342671929,1732035206842,-1526.92,0.000494,30]
[342671930,1732035206867,-428.74,0.000494,30]
[342671931,1732035206897,-433.13,0.000494,30]
[342671932,1732035206924,-433.13,0.000494,30]
[342671933,1732035206953,-433.13,0.000494,30]
[342671934,1732035206980,-342.7144,0.000499,2]
[342671935,1732035207005,-500.0,0.0005,120]
[342671936,1732035207178,150.0,0.000458,2]
[342671937,1732035207610,150.0,0.00047833,2]
[342671938,1732035208635,150.0,0.000485,2]
[342671939,1732035209297,150.0,0.000488,30]
[342671940,1732035209421,800.0,0.00045,120]
[342671941,1732035209725,150.0,0.00049315,17]
[342671942,1732035210169,150.0,0.000494,30]
[342671943,1732035210835,150.0,0.000499,2]
[342671944,1732035211269,150.0,0.0005,120]
[342671945,1732035216917,800.0,0.00045,120]
[342671946,1732035225091,567.56770891,0.00045,120]
[342671947,1732035225566,500.0,0.00045,120]
[342671948,1732035225638,500.0,0.00045,120]
[342671949,1732035237187,908.01,0.00045,120]
[342671950,1732035243251,300.000001,0.00048764,60]
[342671951,1732035243744,500.0,0.00048764,60]
[342671952,1732035244528,500.0,0.00048764,60]
[342671953,1732035271106,800.0,0.0005,30]
[342671954,1732035271581,500.0,0.0005,30]
[342671955,1732035282282,500.0,0.0005,120]
[342671956,1732035302451,33052.98789009,0.0005,2]
[342671957,1732035308193,910.71527749,0.000439,120]
[342671958,1732035310430,47339.28472251,0.00045,2]
[342671959,1732035370451,151.0,0.0003,120]
[342671960,1732035413326,800.0,0.0004,15]
[342671961,1732035413685,800.0,0.0004,15]
[342671962,1732035414037,800.0,0.0004,15]
[342671963,1732035414377,800.0,0.0004,15]
[342671964,1732035414809,800.0,0.0004,15]
[342671965,1732035460154,156.05158032,0.0004,2]
[342671966,1732035466771,6236.0,0.000151,2]
[342671967,1732035480424,1000.0,0.000373,15]
[342671968,1732035585705,287.8,0.00015342,2]
[342671969,1732035585845,287.8,0.00021745,2]
[342671970,1732035586092,287.8,0.00028147,2]
[342671971,1732035586296,287.8,0.00034549,2]
[342671972,1732035621286,632.0,0.0003112,2]
[342671973,1732035621841,214.718,0.0003412,2]
[342671974,1732035645408,1733.0,0.00026235,2]
[342671975,1732035645624,1733.0,0.00026506,2]
[342671976,1732035645747,1733.0,0.00026776,2]
[342671977,1732035645869,1733.0,0.00027047,2]
[342671978,1732035646016,1733.0,0.00027317,2]
[342671979,1732035646215,1733.0,0.00027588,2]
[342671980,1732035646358,1733.0,0.00027858,2]
[342671981,1732035675564,507.04728884,0.00027047,2]
[342671982,1732035678067,-287.8,0.00040952,2]
[342671983,1732035678094,-49712.2,0.0004735,30]
[342671984,1732035679113,-47213.298914,0.0004735,30]
[342671985,1732035679141,-287.8,0.00047354,2]
[342671986,1732035679169,-296.82,0.0004887,10]
[342671987,1732035679194,-566.01,0.0004887,10]
[342671988,1732035679220,-471.68,0.0004887,10]
[342671989,1732035679246,-500.0,0.00048873,10]
[342671990,1732035679273,-156.0,0.0004888,7]
[342671991,1732035679301,-508.391086,0.0004888,2]
[342671992,1732035721017,1000.0,0.000373,15]
[342671993,1732035721263,1000.0,0.000376,15]
[342671994,1732035754093,800.0,0.0004,15]
[342671995,1732035754391,800.0,0.0004,15]
[342671996,1732035772564,800.0,0.0004,15]
[342671997,1732035772920,800.0,0.0004,15]
[342671998,1732035773237,800.0,0.0004,15]
[342671999,1732035773592,800.0,0.0004,15]
[342672000,1732035773879,800.0,0.0004,15]
[342672001,1732036050150,-1000.0,0.0004878,2]
[342672002,1732036050172,-807.1552,0.0004878,2]
[342672003,1732036050194,-290.4659,0.0004878,2]
[342672004,1732036050217,-220.0,0.0004878,2]
[342672005,1732036050239,-200.0,0.000488,17]
[342672006,1732036050268,-189.56,0.0004887,10]
[342672007,1732036050292,-361.47,0.0004887,10]
[342672008,1732036050314,-301.23,0.0004887,10]
[342672009,1732036050337,-156.0,0.0004888,7]
[342672010,1732036050358,-13582.09128404,0.0004888,2]
[342672011,1732036126074,250.0,0.00027,2]
[342672012,1732036127162,300.0,0.00029,2]
[342672013,1732036128247,350.0,0.00031,2]
[342672014,1732036129343,400.0,0.00033,2]
[342672015,1732036130591,450.0,0.00035,2]
[342672016,1732036131541,500.0,0.00037,2]
[342672017,1732036132674,550.0,0.00039,2]
[342672020,1732036164190,-600.0,0.00041,2]
[342672021,1732036164212,-9.7952,0.00043,2]
[342672022,1732036165101,-640.2048,0.00043,2]
[342672023,1732036165126,-536.7752,0.00044814,16]
[342672029,1732036197388,9420.98313084,0.0004,2]
[342672036,1732036232088,-263.2248,0.00044814,16]
[342672037,1732036232098,-800.0,0.00044814,16]
[342672038,1732036232107,-800.0,0.00044814,16]
[342672039,1732036232119,-800.0,0.00044814,16]
[342672040,1732036232128,-800.0,0.00044814,16]
[342672041,1732036232138,-700.0,0.00045,2]
[342672042,1732036232152,-336.26,0.00047191,2]
[342672043,1732036232161,-250.0,0.00048511,120]
[342672044,1732036232171,-157.0,0.00048561,2]
[342672045,1732036232181,-220.0,0.0004878,2]
[342672046,1732036232191,-174.52978585,0.0004878,15]
[342672047,1732036232200,-484.16364546,0.000488,2]
[342672048,1732036232210,-251.02,0.0004887,10]
[342672049,1732036232219,-209.18,0.0004887,10]
[342672050,1732036232229,-299.63,0.0004887,30]
[342672051,1732036232239,-52735.25197923,0.0004888,2]
[342672052,1732036232255,-1686.41644348,0.0004888,2]
[342672053,1732036232267,-400994.67128553,0.0004888,2]
[342672054,1732036232279,-4135.7767,0.0004888,2]
[342672055,1732036232295,-567.39074733,0.0004888,2]
[342672056,1732036232306,-44719.53976168,0.0004888,2]
[342672057,1732036232330,-400.0,0.0004888,2]
[342672059,1732036237674,-174.32,0.0004887,10]
[342672060,1732036237684,-3678.85312565,0.0004888,2]
[342672061,1732036237695,-24584.73183104,0.0004888,2]
[342672062,1732036237707,-9928.87807797,0.0004888,2]
[342672063,1732036237718,-464.72352123,0.0004888,2]
[342672064,1732036237729,-1505.33902118,0.0004888,2]
[342672065,1732036237741,-3768.39679835,0.0004888,2]
[342672066,1732036237789,-925.98,0.0004888,2]
[342672067,1732036237802,-809.0,0.0004888,2]
[342672068,1732036237816,-4748.89366228,0.0004888,2]
[342672069,1732036237827,-5960.89546541,0.0004888,2]
[342672070,1732036238104,-472400.74680052,0.0004888,2]
[342672071,1732036238116,-848.3648661,0.0004888,2]
[342672072,1732036238129,-29988.08483375,0.0004888,2]
[342672073,1732036238139,-500.0,0.000489,17]
[342672075,1732036238148,-459.87,0.000489,30]
[342672077,1732036238162,-9046.81,0.0004909,6]
[342672079,1732036238171,-16102.81,0.0004909,6]
[342672081,1732036238180,-800.0,0.00049315,26]
[342672083,1732036238190,-150.99,0.00049315,2]
[342672084,1732036238200,-250.0,0.00049331,120]
[342672086,1732036238209,-180.67,0.00049331,60]
[342672088,1732036238218,-14803.99,0.00049358,5]
[342672090,1732036238227,-14855.5,0.00049384,5]
[342672092,1732036238237,-1217.333,0.0004939,86]
[342672094,1732036238247,-180.397,0.0004939,86]
[342672096,1732036238256,-2575.0555421,0.0004939,120]
[342672098,1732036238266,-14854.03,0.00049399,5]
[342672100,1732036238275,-435993.24706314,0.000494,30]
[342672102,1732036238284,-2866.08,0.000494,6]
[342672104,1732036238293,-163.17,0.00049426,2]
[342672106,1732036238302,-336.26,0.00049455,2]
[342672107,1732036238311,-150.0,0.00049589,2]
[342672108,1732036238320,-5689.20794624,0.000498,120]
[342672110,1732036238329,-58086.67124307,0.000498,120]
[342672112,1732036238338,-866.24,0.00049888,63]
[342672113,1732036238347,-800.0,0.000499,18]
[342672114,1732036238356,-50000.0,0.0005,30]
[342672115,1732036238365,-31182.0,0.0005,14]
[342672116,1732036238374,-10590.0,0.0005,120]
[342672117,1732036238384,-250.0,0.0005,30]
[342672118,1732036238393,-2000.0,0.0005,2]
[342672119,1732036238405,-1340.0,0.00050219,120]
[342672120,1732036238415,-1000.0,0.0005046,120]
[342672121,1732036238424,-250.0,0.00050559,2]
[342672122,1732036238433,-1856.25,0.00050695,2]
[342672123,1732036238442,-50000.0,0.00051,31]
[342672124,1732036238452,-155.0,0.0005146,7]
[342672125,1732036238463,-215.46,0.00051645,120]
[342672126,1732036238474,-336.26,0.00051719,2]
[342672127,1732036238484,-1000.0,0.00051719,120]
[342672128,1732036238493,-484.16364542,0.00051736,2]
[342672129,1732036238503,-50000.0,0.00052,32]
[342672130,1732036238512,-744.85,0.00052041,120]
[342672131,1732036238521,-3414.05,0.0005214,7]
[342672132,1732036238530,-250.0,0.00052152,120]
[342672133,1732036238540,-2751.0,0.00052291,120]
[342672134,1732036238550,-193.96,0.00052994,2]
[342672135,1732036238559,-50000.0,0.00053,33]
[342672136,1732036238568,-485.86,0.00053381,2]
[342672137,1732036238577,-215544.77,0.0005357,90]
[342672138,1732036238586,-1660.7,0.0005357,2]
[342672139,1732036238596,-200.0,0.0005357,30]
[342672140,1732036238605,-500.0,0.0005357,2]
[342672141,1732036238614,-15978.03,0.0005357,2]
[342672142,1732036238623,-287.8,0.00053756,2]
[342672143,1732036238636,-336.26,0.00053982,2]
[342672144,1732036238645,-50000.0,0.00054,34]
[342672145,1732036238656,-14906.45770309,0.00054,117]
[342672146,1732036238666,-23900.0,0.00054108,2]
[342672147,1732036238675,-215.46,0.00054229,120]
[342672148,1732036238684,-1000.0,0.000545,30]
[342672149,1732036238694,-484.16364542,0.00054671,2]
[342672150,1732036238704,-152.28676352,0.00054794,120]
[342672151,1732036238713,-500.0,0.00054794,120]
[342672152,1732036238723,-1385.03,0.00054794,120]
[342672153,1732036238732,-500.0,0.00054794,120]
[342672154,1732036238742,-500.0,0.00054794,120]
[342672155,1732036238754,-500.0,0.00054794,120]
[342672156,1732036238764,-500.0,0.00054794,120]
[342672157,1732036238779,-600.97151155,0.00054794,120]
[342672158,1732036238788,-500.0,0.00054794,120]
[342672159,1732036238798,-500.0,0.00054794,120]
[342672160,1732036238807,-733.69,0.00054794,120]
[342672161,1732036238816,-500.0,0.00054794,120]
[342672162,1732036238825,-500.0,0.00054794,120]
[342672163,1732036238834,-500.0,0.00054794,120]
[342672164,1732036238843,-2000.0,0.00054794,120]
[342672165,1732036238853,-308.00180225,0.00054794,120]
[342672166,1732036238862,-800.0,0.00054795,28]
[342672167,1732036238871,-50000.0,0.00055,45]
[342672168,1732036238880,-500.0,0.00055068,120]
[342672169,1732036238889,-1385.03,0.00055068,120]
[342672170,1732036238898,-500.0,0.00055068,120]
[342672171,1732036238909,-500.0,0.00055068,120]
[342672172,1732036238918,-500.0,0.00055068,120]
[342672173,1732036238927,-500.0,0.00055068,120]
[342672174,1732036238937,-500.0,0.00055068,120]
[342672175,1732036238946,-500.0,0.00055068,120]
[342672176,1732036238955,-733.69,0.00055068,120]
[342672177,1732036238964,-2000.0,0.00055068,120]
[342672178,1732036238973,-500.0,0.00055342,120]
[342672179,1732036238983,-1385.03,0.00055342,120]
[342672180,1732036238992,-500.0,0.00055342,120]
[342672181,1732036239001,-500.0,0.00055342,120]
[342672182,1732036239010,-500.0,0.00055342,120]
[342672183,1732036239019,-500.0,0.00055342,120]
[342672184,1732036239029,-151.68282044,0.00055342,120]
[342672185,1732036239038,-500.0,0.00055342,120]
[342672186,1732036239051,-733.69,0.00055342,120]
[342672187,1732036239060,-2000.0,0.00055342,120]
[342672188,1732036239069,-500.0,0.00055616,120]
[342672189,1732036239079,-1385.03,0.00055616,120]
[342672190,1732036239089,-500.0,0.00055616,120]
[342672191,1732036239098,-500.0,0.00055616,120]
[342672192,1732036239108,-500.0,0.00055616,120]
[342672193,1732036239118,-500.0,0.00055616,120]
[342672194,1732036239129,-500.0,0.00055616,120]
[342672195,1732036239141,-733.69,0.00055616,120]
[342672196,1732036239151,-2000.0,0.00055616,120]
[342672197,1732036239162,-4000.0,0.00055693,2]
[342672198,1732036239172,-242.74,0.0005577,120]
[342672199,1732036239182,-500.0,0.0005589,120]
[342672200,1732036239192,-1385.03,0.0005589,120]
[342672201,1732036239203,-485.76096574,0.0005589,120]
[342672202,1732036239213,-500.0,0.0005589,120]
[342672203,1732036239224,-500.0,0.0005589,120]
[342672204,1732036239234,-500.0,0.0005589,120]
[342672205,1732036239244,-591.81037541,0.0005589,120]
[342672206,1732036239253,-733.69,0.0005589,120]
[342672207,1732036239263,-2000.0,0.0005589,120]
[342672208,1732036239272,-50000.0,0.00056,46]
[342672209,1732036239281,-118232.527,0.00056,120]
[342672210,1732036239291,-1385.03,0.00056164,120]
[342672211,1732036239300,-500.0,0.00056164,120]
[342672212,1732036239310,-500.0,0.00056164,120]
[342672213,1732036239319,-500.0,0.00056164,120]
[342672214,1732036239328,-733.69,0.00056164,120]
[342672215,1732036239338,-2000.0,0.00056164,120]
[342672216,1732036239347,-336.26,0.00056246,2]
[342672217,1732036239357,-300.0,0.00056326,120]
[342672218,1732036239366,-1385.03,0.00056438,120]
[342672219,1732036239375,-500.0,0.00056438,120]
[342672220,1732036239385,-500.0,0.00056438,120]
[342672221,1732036239394,-733.69,0.00056438,120]
[342672222,1732036239404,-377.62139234,0.00056438,120]
[342672223,1732036239413,-33000.0,0.0005648,120]
[342672224,1732036239422,-153.22,0.0005659,120]
[342672226,1732036239432,-1133.0,0.000567,7]
[342672227,1732036239441,-1385.03,0.00056712,120]
[342672229,1732036239450,-500.0,0.00056712,120]
[342672230,1732036239459,-500.0,0.00056712,120]
[342672231,1732036239469,-733.69,0.00056712,120]
[342672232,1732036239478,-215.46,0.00056813,120]
[342672233,1732036239487,-9096.57,0.00056874,2]
[342672234,1732036239496,-291.0225,0.00056888,30]
[342672235,1732036239506,-5000.0,0.000569,120]
[342672236,1732036239515,-1385.03,0.00056986,120]
[342672237,1732036239524,-500.0,0.00056986,120]
[342672238,1732036239534,-500.0,0.00056986,120]
[342672239,1732036239544,-733.69,0.00056986,120]
[342672240,1732036239553,-50000.0,0.00057,47]
[342672241,1732036239562,-200.0,0.00057,120]
[342672242,1732036239571,-200.0,0.00057,120]
[342672243,1732036239581,-1385.03,0.0005726,120]
[342672244,1732036239590,-298.50475698,0.0005726,120]
[342672245,1732036239599,-500.0,0.0005726,120]
[342672246,1732036239609,-733.69,0.0005726,120]
[342672247,1732036239619,-431.48362997,0.00057488,120]
[342672248,1732036239628,-1385.03,0.00057534,120]
[342672249,1732036239638,-525.96482832,0.00057534,120]
[342672250,1732036239648,-733.69,0.00057534,120]
[342672251,1732036239659,-300.0,0.00057696,120]
[342672252,1732036239669,-658.0,0.0005771,35]
[342672253,1732036239678,-1385.03,0.00057808,120]
[342672254,1732036239688,-733.69,0.00057808,120]
[342672255,1732036239697,-200.0,0.0005786,120]
[342672256,1732036239707,-50000.0,0.00058,48]
[342672257,1732036239717,-33000.0,0.00058,120]
[342672258,1732036239726,-165.78,0.00058044,2]
[342672259,1732036239736,-1385.03,0.00058082,120]
[342672260,1732036239746,-733.69,0.00058082,120]
[342672261,1732036239756,-1000.0,0.00058184,120]
[342672262,1732036239766,-1385.03,0.00058356,120]
[342672263,1732036239775,-733.69,0.00058356,120]
[342672264,1732036239785,-150.0,0.00058488,120]
[342672265,1732036239795,-336.26,0.0005851,2]
[342672266,1732036239804,-1385.03,0.0005863,120]
[342672267,1732036239814,-733.69,0.0005863,120]
[342672268,1732036239823,-1000.0,0.000588,21]
[342672269,1732036239832,-79809.4561,0.000589,120]
[342672270,1732036239842,-1300.0,0.000589,21]
[342672271,1732036239851,-2175.43902066,0.000589,2]
[342672272,1732036239860,-1385.03,0.00058904,120]
[342672273,1732036239870,-733.69,0.00058904,120]
[342672274,1732036239879,-5000.0,0.00058999,70]
[342672275,1732036239888,-1145.62,0.00058999,120]
[342672276,1732036239898,-50000.0,0.00059,49]
[342672277,1732036239909,-315410.02666477,0.00059,31]
[342672278,1732036239919,-13595.15779475,0.00059,61]
[342672279,1732036239928,-20000.0,0.00059,2]
[342672280,1732036239938,-599999.0,0.00059,120]
[342672281,1732036239947,-200.0,0.00059,120]
[342672282,1732036239957,-150166.24108197,0.00059,120]
[342672283,1732036239967,-12502.0,0.00059,117]
[342672284,1732036239976,-983.821215,0.00059,120]
[342672285,1732036239986,-172024.24419169,0.00059,120]
[342672286,1732036239995,-3271.71628828,0.00059078,30]
[342672287,1732036240005,-674.82782084,0.00059078,12]
[342672288,1732036240015,-1385.03,0.00059178,120]
[342672289,1732036240026,-733.69,0.00059178,120]
[342672290,1732036240037,-34000.000001,0.0005929,120]
[342672291,1732036240048,-215.46,0.00059397,120]
[342672292,1732036240057,-3000.0,0.000594,101]
[342672293,1732036240067,-1385.03,0.00059452,120]
[342672294,1732036240077,-733.69,0.00059452,120]
[342672295,1732036240087,-1000000.0,0.000595,120]
[342672296,1732036240096,-151.0,0.000595,120]
[342672297,1732036240105,-151.0,0.000595,120]
[342672298,1732036240116,-151.0,0.000595,120]
[342672299,1732036240125,-151.0,0.000595,120]
[342672300,1732036240135,-151.0,0.000595,120]
[342672301,1732036240144,-521.818537,0.000595,120]
[342672302,1732036240155,-151.0,0.000595,120]
[342672303,1732036240164,-151.0,0.000595,120]
[342672304,1732036240173,-151.0,0.000595,120]
[342672305,1732036240182,-151.0,0.000595,120]
[342672306,1732036240192,-151.0,0.000595,7]
[342672307,1732036240201,-151.0,0.000595,120]
[342672308,1732036240210,-3474.406426,0.000595,120]
[342672309,1732036240220,-3474.406426,0.000595,120]
[342672310,1732036240230,-151.0,0.000595,120]
[342672311,1732036240239,-151.0,0.000595,120]
[342672312,1732036240248,-151.0,0.000595,120]
[342672313,1732036240257,-151.0,0.000595,120]
[342672314,1732036240266,-151.0,0.000595,120]
[342672315,1732036240276,-151.0,0.000595,120]
[342672316,1732036240285,-151.0,0.000595,7]
[342672317,1732036240294,-151.0,0.000595,120]
[342672318,1732036240304,-151.0,0.000595,120]
[342672319,1732036240314,-151.0,0.000595,120]
[342672320,1732036240323,-151.0,0.000595,120]
[342672321,1732036240332,-151.0,0.000595,120]
[342672322,1732036240342,-151.0,0.000595,120]
[342672323,1732036240351,-449.32761,0.000595,120]
[342672324,1732036240360,-449.32761,0.000595,120]
[342672325,1732036240369,-151.0,0.000595,120]
[342672326,1732036240379,-151.0,0.000595,120]
[342672327,1732036240388,-151.0,0.000595,120]
[342672328,1732036240398,-151.0,0.000595,120]
[342672329,1732036240409,-151.0,0.000595,120]
[342672330,1732036240419,-3000.0,0.0005957,102]
[342672331,1732036240428,-150.0,0.00059616,14]
[342672332,1732036240437,-150.0,0.00059629,14]
[342672333,1732036240447,-150.0,0.0005964,14]
[342672334,1732036240456,-150.0,0.00059642,14]
[342672335,1732036240465,-150.0,0.00059649,14]
[342672336,1732036240475,-150.0,0.00059657,14]
[342672337,1732036240484,-150.0,0.00059658,14]
[342672338,1732036240493,-150.0,0.00059667,14]
[342672339,1732036240503,-150.0,0.00059667,14]
[342672340,1732036240513,-150.0,0.00059674,14]
[342672341,1732036240522,-150.0,0.00059688,14]
[342672342,1732036240654,-150.0,0.00059695,14]
[342672343,1732036240664,-150.0,0.00059703,14]
[342672344,1732036240674,-150.0,0.00059707,14]
[342672345,1732036240683,-150.0,0.00059711,14]
[342672346,1732036240693,-1500.0,0.00059712,30]
[342672347,1732036240702,-150.0,0.00059716,14]
[342672348,1732036240711,-150.0,0.00059717,14]
[342672349,1732036240721,-150.0,0.0005972,14]
[342672350,1732036240730,-1385.03,0.00059726,120]
[342672351,1732036240740,-733.69,0.00059726,120]
[342672352,1732036240751,-150.0,0.00059733,14]
[342672353,1732036240761,-1500.0,0.00059735,30]
[342672354,1732036240770,-150.0,0.00059736,14]
[342672355,1732036240780,-150.0,0.00059738,14]
[342672356,1732036240789,-150.0,0.00059748,14]
[342672357,1732036240798,-150.0,0.00059752,14]
[342672358,1732036240807,-150.0,0.00059752,14]
[342672359,1732036240816,-150.0,0.00059755,30]
[342672360,1732036240826,-150.0,0.00059758,14]
[342672361,1732036240835,-150.0,0.00059759,14]
[342672362,1732036240844,-150.0,0.00059761,14]
[342672363,1732036240853,-150.0,0.00059762,14]
[342672364,1732036240864,-1500.0,0.00059764,30]
[342672365,1732036240873,-150.0,0.00059765,14]
[342672366,1732036240883,-150.0,0.00059767,14]
[342672367,1732036240892,-150.0,0.0005977,14]
[342672368,1732036240903,-150.0,0.00059771,14]
[342672369,1732036240912,-300.0,0.00059772,14]
[342672370,1732036240921,-150.0,0.00059773,14]
[342672371,1732036240931,-150.0,0.00059776,14]
[342672372,1732036240940,-150.0,0.00059779,14]
[342672373,1732036240949,-150.0,0.0005978,14]
[342672374,1732036240958,-150.0,0.00059783,14]
[342672375,1732036240968,-150.0,0.00059785,30]
[342672376,1732036240977,-150.0,0.00059785,14]
[342672377,1732036240986,-150.0,0.00059788,14]
[342672378,1732036240995,-150.0,0.00059788,14]
[342672379,1732036241004,-1500.0,0.00059789,30]
[342672380,1732036241014,-150.0,0.0005979,14]
[342672381,1732036241023,-1500.0,0.0005979,30]
[342672382,1732036241036,-150.0,0.00059792,14]
[342672383,1732036241045,-150.0,0.00059796,14]
[342672384,1732036241055,-150.0,0.00059798,14]
[342672385,1732036241064,-150.0,0.00059799,14]
[342672386,1732036241075,-150.0,0.00059803,14]
[342672387,1732036241084,-150.0,0.00059803,30]
[342672388,1732036241094,-150.0,0.00059803,14]
[342672389,1732036241104,-150.0,0.00059804,14]
[342672390,1732036241115,-150.0,0.00059807,14]
[342672391,1732036241125,-150.0,0.00059807,14]
[342672392,1732036241134,-1500.0,0.00059808,30]
[342672393,1732036241145,-150.0,0.00059809,14]
[342672394,1732036241154,-150.0,0.0005981,14]
[342672395,1732036241163,-150.0,0.0005981,14]
[342672396,1732036241173,-150.0,0.00059812,14]
[342672397,1732036241182,-1500.0,0.00059818,30]
[342672398,1732036241191,-150.0,0.00059819,14]
[342672399,1732036241200,-150.0,0.00059819,14]
[342672400,1732036241209,-150.0,0.00059819,14]
[342672401,1732036241218,-150.0,0.0005982,14]
[342672402,1732036241228,-150.0,0.0005982,14]
[342672403,1732036241237,-150.0,0.00059821,14]
[342672404,1732036241246,-150.0,0.00059823,14]
[342672405,1732036241255,-150.0,0.00059823,14]
[342672406,1732036241264,-150.0,0.00059824,14]
[342672407,1732036241274,-150.0,0.00059827,14]
[342672408,1732036241283,-150.0,0.00059827,14]
[342672409,1732036241292,-150.0,0.00059828,14]
[342672410,1732036241302,-150.0,0.00059829,14]
[342672411,1732036241312,-150.0,0.00059833,14]